bitfinex-derivatives/quotes_ETHF0:USTF0_20250224
["timestamp","ask_amount","ask_price","bid_price","bid_amount"]
[1740365248065,3.2078,2787.5,2786.6,3.2078]
[1740365248264,3.2078,2787.5,2786.9,0.7176]
[1740365248566,3.2078,2787.5,2786.9,3.2078]
[1740365248769,3.5305,2787.7,2786.9,3.2078]
[1740365249266,3.5305,2787.7,2787.1,0.71755]
[1740365249267,4.24793,2787.7,2787.1,0.71755]
[1740365249456,3.5305,2787.7,2786.9,3.2078]
[1740365250160,4.24792,2787.7,2787.1,0.71756]
[1740365250360,3.92526,2787.6,2787.0,0.71758]
[1740365250563,3.2078,2787.6,2786.9,3.92541]
[1740365250762,3.2078,2787.6,2786.9,3.2078]
[1740365250961,3.2078,2787.6,2787.1,0.71757]
[1740365251566,3.2078,2787.6,2787.1,0.71755]
[1740365251967,3.2078,2787.6,2787.4,0.71748]
[1740365252277,3.2078,2787.6,2787.3,0.71752]
[1740365252974,3.2078,2787.6,2787.2,0.00538725]
[1740365254278,6.1948,2787.6,2787.2,0.72291725]
[1740365254665,6.1948,2787.6,2787.2,0.00538725]
[1740365255174,6.1948,2787.6,2787.2,0.72291725]
[1740365255577,6.1948,2787.6,2787.3,0.7175]
[1740365255877,6.1948,2787.6,2787.4,0.71748]
[1740365256074,6.1948,2787.6,2787.2,0.00538725]
[1740365256377,6.1948,2787.6,2787.2,0.72291725]
[1740365256573,6.1948,2787.6,2787.2,0.00538725]
[1740365257073,6.1948,2787.6,2787.3,0.71751]
[1740365257265,6.1948,2787.6,2787.2,0.00538725]
[1740365257670,3.2078,2788.2,2787.3,2.441]
[1740365257869,1.0936,2788.3,2787.5,3.2078]
[1740365258075,3.2078,2788.5,2787.8,3.2078]
[1740365258377,3.2078,2788.5,2787.8,5.6488]
[1740365258877,3.2078,2788.5,2788.3,0.71726]
[1740365259075,3.2078,2788.5,2788.1,3.2078]
[1740365259377,3.2078,2788.5,2788.2,0.71728]
[1740365259672,3.2078,2788.5,2788.3,0.71725]
[1740365260071,3.2078,2788.5,2788.1,3.2078]
[1740365260272,3.2078,2788.5,2788.3,0.71725]
[1740365260474,3.2078,2788.5,2788.1,3.2078]
[1740365260777,3.2078,2788.5,2788.3,0.71726]
[1740365260979,2.987,2788.7,2788.6,0.71719]
[1740365261177,4.2774,2789.6,2788.4,3.2078]
[1740365261378,0.71699,2789.4,2788.7,0.71714]
[1740365261578,0.71697,2789.5,2788.8,0.71712]
[1740365261767,4.2774,2789.6,2788.7,0.00538725]
[1740365261768,4.2774,2789.6,2788.7,3.21318725]
[1740365262169,6.7184,2789.6,2788.7,3.21318725]
[1740365262474,3.2078,2789.6,2788.8,2.443]
[1740365262670,3.2078,2790.1,2789.0,3.2078]
[1740365262975,3.2078,2789.2,2788.7,0.00538725]
[1740365263182,2.446,2789.4,2788.7,0.00538725]
[1740365263380,1.1213,2789.3,2788.7,0.72253725]
[1740365263578,1.1213,2789.3,2788.7,0.00538725]
[1740365264079,1.83832,2789.3,2788.7,0.72254725]
[1740365264280,1.83832,2789.3,2788.7,0.00538725]
[1740365264478,1.1213,2789.3,2788.7,0.00538725]
[1740365264674,1.83832,2789.3,2788.7,0.00538725]
[1740365265276,0.71703,2789.2,2788.7,0.00538725]
[1740365265480,0.71708,2789.1,2788.7,0.00538725]
[1740365265682,1.1213,2789.3,2788.7,0.00538725]
[1740365266179,0.7171,2789.0,2788.7,0.00538725]
[1740365267184,3.2078,2789.2,2788.7,0.00538725]
[1740365267479,0.71707,2789.1,2788.7,0.00538725]
[1740365267675,0.71709,2789.0,2788.7,0.00538725]
[1740365268272,3.2078,2788.9,2788.7,0.00538725]
[1740365268983,3.2078,2788.9,2788.7,0.72254725]
[1740365269178,3.2078,2788.9,2788.7,0.00538725]
[1740365269779,0.71706,2789.1,2788.7,0.00538725]
[1740365270582,0.71707,2789.1,2788.7,0.00538725]
[1740365270974,0.71709,2789.0,2788.7,0.00538725]
[1740365271384,3.2078,2789.2,2788.7,0.00538725]
[1740365271575,0.71709,2789.0,2788.7,0.00538725]
[1740365272383,0.7171,2789.0,2788.7,0.00538725]
[1740365272683,0.71712,2788.9,2788.7,0.00538725]
[1740365272884,0.71714,2788.8,2788.7,0.00538725]
[1740365275983,3.70414,2788.8,2788.7,0.00538725]
[1740365276291,2.987,2788.8,2787.9,3.2078]
[1740365276585,3.2078,2788.5,2787.9,3.2078]
[1740365277092,0.00256885,2788.4,2787.9,3.2078]
[1740365277391,0.00256885,2788.4,2787.9,3.21317711]
[1740365277693,0.00256885,2788.4,2787.9,0.00537711]
[1740365278589,3.2078,2788.1,2787.9,0.00537711]
[1740365278787,1.013,2788.0,2787.9,0.00537711]
[1740365280396,2.987,2788.3,2787.9,0.00537711]
[1740365280884,2.987,2788.3,2787.9,1.03227711]
[1740365281083,6.1948,2788.3,2787.9,0.00537711]
[1740365281282,1.1089,2788.2,2787.9,0.00537711]
[1740365281687,2.44,2788.1,2787.9,0.00537711]
[1740365282190,6.1948,2788.0,2787.1,2.0796]
[1740365282491,3.2078,2787.9,2787.1,2.0796]
[1740365283487,3.2078,2787.6,2787.2,0.00537711]
[1740365283686,1.0636,2787.5,2787.2,0.00537711]
[1740365284790,3.2078,2787.3,2787.2,0.00537711]
[1740365287493,9.2078,2787.3,2787.2,0.00537711]
[1740365287691,3.2078,2787.3,2787.2,0.00537711]
[1740365289393,12.8868,2787.3,2786.2,1.1021]
[1740365289590,3.2078,2786.7,2786.2,1.1021]
[1740365289795,5.6478,2786.7,2786.2,1.1021]
[1740365290497,5.65317711,2786.7,2786.2,1.10747711]
[1740365291499,3.21317711,2786.7,2786.3,1.0374]
[1740365291695,3.2078,2786.4,2786.2,0.00537711]
[1740365293893,0.00537711,2786.7,2786.2,0.00537711]
[1740365294190,0.00537711,2786.7,2786.2,1.02257711]
[1740365295592,0.00537711,2786.7,2786.5,3.2078]
[1740365296193,0.00537711,2786.7,2786.6,1.1136]
[1740365297898,3.2078,2787.4,2786.6,1.1136]
[1740365298101,3.2078,2787.4,2786.8,3.2078]
[1740365299004,3.21317711,2787.4,2786.8,3.2078]
[1740365299903,3.21317711,2787.4,2786.9,2.441]
[1740365301004,3.21317711,2787.4,2787.0,1.0815]
[1740365304203,3.2078,2787.1,2786.6,1.1136]
[1740365304408,4.4902,2787.3,2786.6,1.1136]
[1740365304604,3.2078,2787.1,2786.6,1.1136]
[1740365306112,0.00537711,2787.4,2787.0,3.2078]
[1740365306310,0.00537711,2787.4,2787.1,1.0777]
[1740365306511,0.00537711,2787.4,2787.1,2.1899]
[1740365309706,0.00537711,2787.4,2787.3,3.2078]
[1740365313510,0.00537711,2787.4,2787.1,2.1899]
[1740365314017,0.00537711,2787.4,2787.1,5.3977]
[1740365317421,0.00537711,2787.4,2787.1,6.11527]
[1740365318317,0.00537711,2787.4,2787.1,5.3977]
[1740365318707,0.00537711,2787.4,2786.8,3.2078]
[1740365318913,3.2078,2787.2,2786.7,1.0796]
[1740365319217,0.71763,2786.9,2786.7,1.0796]
[1740365319816,3.2078,2787.2,2786.6,1.1136]
[1740365320121,5.6478,2787.2,2786.6,1.1136]
[1740365320418,0.71764,2786.9,2786.6,1.1136]
[1740365321612,5.6478,2787.2,2786.6,1.1136]
[1740365321813,0.71765,2786.8,2786.6,1.1136]
[1740365322221,0.71764,2786.9,2786.6,1.1136]
[1740365322412,5.6478,2787.2,2786.6,1.1136]
[1740365322619,0.71766,2786.8,2786.6,1.1136]
[1740365323021,0.71764,2786.9,2786.6,1.1136]
[1740365323221,5.6478,2787.2,2786.6,1.1136]
[1740365323413,0.71765,2786.8,2786.6,1.1136]
[1740365323614,0.71764,2786.9,2786.6,1.1136]
[1740365323819,1.0808,2787.3,2786.8,3.2078]
[1740365324021,1.0808,2787.3,2787.0,0.7176]
[1740365324218,1.0808,2787.3,2786.9,1.0459]
[1740365324524,1.79833,2787.3,2787.0,40.8]
[1740365324826,0.00537711,2787.4,2787.3,0.71752]
[1740365325025,0.00537711,2787.4,2787.2,0.71754]
[1740365325326,0.00537711,2787.4,2787.3,1.0393]
[1740365325729,0.00537711,2787.4,2787.0,3.2078]
[1740365325927,0.71754,2787.3,2787.0,3.2078]
[1740365326326,0.00537711,2787.4,2786.9,1.0459]
[1740365326627,3.2078,2787.3,2786.7,1.0393]
[1740365326827,1.096,2787.2,2786.7,1.0393]
[1740365327020,2.1737,2787.2,2786.7,1.0393]
[1740365327221,0.71759,2787.1,2786.7,4.2471]
[1740365328431,0.71757,2787.1,2786.7,4.2471]
[1740365329325,2.1737,2787.2,2786.7,4.2471]
[1740365329738,3.2078,2787.3,2786.8,2.44]
[1740365330028,3.2078,2787.3,2787.1,0.71755]
[1740365330228,0.00537711,2787.4,2787.1,0.71755]
[1740365330430,0.00537711,2787.4,2787.0,3.2078]
[1740365330629,0.71752,2787.3,2787.0,3.2078]
[1740365330831,0.00537711,2787.4,2786.8,2.44]
[1740365330832,0.71757,2787.1,2786.8,2.44]
[1740365331131,0.00537711,2787.4,2786.7,1.0393]
[1740365331328,3.2078,2787.2,2786.7,1.0393]
[1740365331530,0.71765,2786.9,2786.7,1.0393]
[1740365331925,1.0116,2787.1,2786.7,1.0393]
[1740365332127,1.0116,2787.1,2786.3,3.2078]
[1740365332323,3.2078,2786.9,2786.2,0.00537711]
[1740365332523,0.71774,2786.5,2786.2,0.00537711]
[1740365332734,0.71772,2786.6,2786.2,0.00537711]
[1740365333032,0.71769,2786.7,2786.2,0.00537711]
[1740365333232,5.6478,2786.9,2786.2,0.00537711]
[1740365333435,0.71771,2786.6,2786.2,0.00537711]
[1740365333732,0.71769,2786.7,2786.2,0.72317711]
[1740365333921,5.6478,2786.9,2786.2,0.00537711]
[1740365334627,0.7177,2786.7,2786.2,0.72317711]
[1740365334825,5.6478,2786.9,2786.2,0.00537711]
[1740365335237,0.7177,2786.7,2786.2,0.72317711]
[1740365335730,5.6478,2786.9,2786.2,0.00537711]
[1740365336139,3.2078,2786.9,2786.2,0.00537711]
[1740365336328,0.71768,2786.7,2786.2,0.72315711]
[1740365336931,3.2078,2786.9,2786.2,0.00537711]
[1740365337132,0.71778,2786.3,2786.2,0.00537711]
[1740365338530,3.92558,2786.3,2786.2,0.00537711]
[1740365342332,3.92558,2786.3,2786.2,7.11e-06]
[1740365343436,9.2078,2786.3,2785.0,1.0179]
[1740365343644,4.5622,2786.5,2785.0,1.0179]
[1740365343645,3.2078,2785.8,2785.0,1.0179]
[1740365343852,5.6488,2785.8,2785.0,1.0179]
[1740365344036,6.36672,2785.8,2785.4,0.718]
[1740365344234,3.2078,2785.8,2785.0,1.0179]
[1740365344542,1.1401,2785.7,2785.0,1.0179]
[1740365344735,1.14547711,2785.7,2785.1,0.00537711]
[1740365345034,1.14547711,2785.7,2785.3,0.71803]
[1740365346244,0.00537711,2785.7,2785.6,0.71796]
[1740365346441,0.7178,2786.2,2785.7,0.71792]
[1740365346638,5.6488,2786.4,2785.8,3.2078]
[1740365346934,1.1401,2786.5,2786.1,3.2078]
[1740365347131,1.0833,2786.9,2786.2,1.0399]
[1740365347335,2.1112,2787.4,2786.4,3.2078]
[1740365347336,2.441,2787.2,2786.4,3.2078]
[1740365347537,0.00537711,2786.8,2786.7,0.71767]
[1740365347934,0.00537711,2786.8,2786.7,3.92547]
[1740365349638,3.2078,2787.9,2786.8,1.7941]
[1740365349834,3.2078,2787.9,2787.6,0.71742]
[1740365350542,1.0696,2788.0,2787.4,1.1143]
[1740365350738,0.00535346,2788.0,2787.9,0.71737]
[1740365350939,0.00535346,2788.0,2787.9,3.92517]
[1740365351136,2.441,2789.0,2788.4,0.71724]
[1740365351445,2.441,2789.0,2788.6,0.71717]
[1740365351633,2.441,2789.0,2788.3,0.71726]
[1740365351832,3.15809,2789.0,2788.3,0.71726]
[1740365352039,0.00288396,2788.7,2788.2,3.49547932]
[1740365352243,0.00288396,2788.7,2788.5,0.71719]
[1740365352736,0.00288396,2788.7,2788.5,3.2078]
[1740365353040,3.2078,2789.7,2788.5,3.2078]
[1740365353243,3.2078,2789.7,2789.3,0.717]
[1740365353542,3.2078,2789.7,2788.9,3.2078]
[1740365353543,3.2078,2789.7,2788.9,5.6478]
[1740365353740,3.2078,2789.7,2789.3,0.717]
[1740365353948,1.0504,2789.9,2789.2,3.2078]
[1740365354237,1.0504,2789.9,2789.4,0.71697]
[1740365354441,1.0504,2789.9,2789.2,3.2078]
[1740365354642,1.76726,2789.9,2789.2,3.92482]
[1740365355244,1.76726,2789.9,2788.8,3.2078]
[1740365355245,0.71695,2789.6,2788.8,3.2078]
[1740365355444,3.92471,2789.7,2789.0,0.71706]
[1740365356139,3.92471,2789.7,2789.1,0.71706]
[1740365356339,3.2078,2789.7,2789.0,0.71708]
[1740365356544,3.2078,2789.7,2788.9,2.44]
[1740365356846,0.71694,2789.6,2789.1,3.2078]
[1740365357037,3.2078,2789.7,2789.1,3.2078]
[1740365357242,3.92472,2789.7,2789.1,3.92485]
[1740365357540,0.71699,2789.4,2789.1,3.2078]
[1740365357748,0.717,2789.4,2789.1,3.2078]
[1740365358038,0.717,2789.4,2788.3,22.0798]
[1740365358039,0.71705,2789.2,2788.7,0.71715]
[1740365358240,0.71705,2789.2,2788.3,25.2876]
[1740365358241,3.2078,2789.2,2788.3,25.2876]
[1740365359248,3.92484,2789.2,2788.7,0.71715]
[1740365359737,6.36384,2789.2,2788.7,0.71715]
[1740365360543,5.6468,2789.2,2788.3,25.2876]
[1740365360943,0.71706,2789.1,2788.3,25.2876]
[1740365361147,0.71706,2789.1,2788.6,0.71717]
[1740365361651,6.36384,2789.2,2788.7,0.71716]
[1740365362043,5.6468,2789.2,2788.3,5.3896]
[1740365362345,5.6468,2789.2,2788.4,0.71724]
[1740365362548,0.71712,2788.9,2788.4,0.71724]
[1740365362747,0.71711,2788.9,2788.3,5.3896]
[1740365362943,0.71711,2788.9,2788.4,0.71722]
[1740365363452,0.71709,2789.0,2788.5,0.7172]
[1740365364147,2.0864,2789.1,2788.3,4.2931]
[1740365364348,0.71715,2788.8,2788.3,5.01035]
[1740365364647,2.439,2788.8,2788.2,0.00537711]
[1740365364951,0.71724,2788.4,2788.2,0.00537711]
[1740365365847,3.925,2788.6,2788.2,0.72266711]
[1740365366347,0.71725,2788.4,2788.2,0.00537711]
[1740365366542,0.71726,2788.3,2788.2,0.00537711]
[1740365366738,0.71725,2788.4,2788.2,0.00537711]
[1740365366947,0.71726,2788.3,2788.2,0.00537711]
[1740365367252,3.2078,2788.6,2788.2,0.00537711]
[1740365367452,0.71726,2788.3,2788.2,0.00537711]
[1740365368650,3.2078,2788.6,2788.2,0.00537711]
[1740365368948,0.71726,2788.3,2788.2,0.00537711]
[1740365371151,3.92506,2788.3,2788.2,0.00537711]
[1740365371353,6.36406,2788.3,2788.2,0.00537711]
[1740365372844,1.79284,2788.9,2788.4,0.71722]
[1740365372845,3.2078,2788.6,2788.4,0.71722]
[1740365373057,3.2078,2788.6,2788.2,0.00537711]
[1740365373451,3.2078,2788.9,2788.7,0.71715]
[1740365373658,1.0355,2789.1,2788.9,0.71709]
[1740365373854,1.0355,2789.1,2788.5,1.0434]
[1740365374257,1.0355,2789.1,2788.8,0.71712]
[1740365374453,1.0355,2789.1,2788.5,1.0434]
[1740365374958,1.0355,2789.1,2788.9,0.71711]
[1740365375157,2.987,2789.3,2788.7,3.2078]
[1740365375557,2.987,2789.3,2788.9,0.7171]
[1740365375948,2.987,2789.3,2788.7,3.2078]
[1740365375949,3.70401,2789.3,2788.8,0.71712]
[1740365376152,6.1948,2789.3,2788.6,1.0818]
[1740365376357,6.1948,2789.3,2788.6,5.00678]
[1740365376557,0.71707,2789.1,2788.6,1.0818]
[1740365376861,6.1948,2789.3,2788.6,5.00679]
[1740365377060,0.71703,2789.2,2788.6,5.00679]
[1740365377256,6.1948,2789.3,2788.6,4.2896]
[1740365377461,0.71707,2789.1,2788.6,4.2896]
[1740365378163,6.1948,2789.3,2788.6,4.2896]
[1740365378363,0.71706,2789.1,2788.6,4.2896]
[1740365378661,0.71706,2789.1,2788.6,5.00678]
[1740365378861,0.71703,2789.2,2788.6,5.00677]
[1740365379061,3.2078,2789.3,2788.7,0.71716]
[1740365379362,0.71706,2789.1,2788.6,5.00677]
[1740365380060,0.71705,2789.2,2788.7,0.71715]
[1740365380265,0.71707,2789.1,2788.6,5.00677]
[1740365380665,3.2078,2789.3,2788.6,4.2896]
[1740365380867,0.7171,2789.0,2788.6,4.2896]
[1740365381368,3.2078,2789.3,2788.6,4.2896]
[1740365381563,3.2078,2789.0,2788.5,1.0434]
[1740365381859,0.71719,2788.6,2788.5,1.0434]
[1740365382068,0.71722,2788.5,2788.2,1.16007711]
[1740365382660,0.71726,2788.4,2788.2,0.00537711]
[1740365382959,0.71726,2788.3,2788.2,0.00537711]
[1740365383363,5.6458,2788.4,2788.2,0.00537711]
[1740365383564,6.36304,2788.4,2788.2,0.00537711]
[1740365384059,5.6458,2788.4,2788.2,0.00537711]
[1740365384564,5.6458,2788.4,2788.3,0.71726]
[1740365384958,1.1456,2788.9,2788.2,3.21317711]
[1740365385158,3.2078,2789.2,2788.5,3.2078]
[1740365385363,3.2078,2789.2,2788.8,0.71712]
[1740365385565,3.2078,2789.2,2788.9,1.1303]
[1740365385768,3.92484,2789.2,2788.9,1.1303]
[1740365385964,3.2078,2789.2,2788.9,1.1303]
[1740365386559,4.2931,2789.5,2788.9,1.1303]
[1740365386766,7.44807,2789.5,2788.9,1.8474]
[1740365387066,0.717,2789.4,2788.9,1.1303]
[1740365387363,6.7311,2789.5,2788.9,1.84739]
[1740365387562,6.7311,2789.5,2788.9,1.1303]
[1740365388169,7.44807,2789.5,2788.9,1.84739]
[1740365388364,0.71698,2789.4,2788.9,1.84739]
[1740365388662,0.71698,2789.4,2788.9,1.1303]
[1740365388866,5.6458,2789.5,2788.9,1.1303]
[1740365389062,1.081,2789.7,2789.6,0.71693]
[1740365389268,1.081,2789.7,2789.5,0.71694]
[1740365389564,3.2078,2789.8,2789.6,0.71693]
[1740365389762,3.2078,2789.8,2789.5,0.71694]
[1740365389963,3.2078,2789.8,2789.2,3.2078]
[1740365390161,1.0797,2790.0,2789.7,0.7169]
[1740365390363,1.0797,2790.0,2789.6,0.71691]
[1740365390865,3.2078,2790.2,2790.0,0.71682]
[1740365391064,3.2078,2790.2,2789.5,3.2078]
[1740365391265,3.2078,2790.2,2790.1,0.7168]
[1740365391466,3.2078,2790.2,2790.0,0.71681]
[1740365393466,3.2078,2790.2,2789.8,0.00537711]
[1740365393868,3.2078,2790.2,2790.0,0.71682]
[1740365394266,3.2078,2790.2,2789.8,0.00537711]
[1740365394865,3.2078,2790.2,2790.0,0.71682]
[1740365395063,3.2078,2790.5,2790.4,0.71672]
[1740365395266,6.7392,2790.9,2790.4,3.2078]
[1740365395473,1.1048,2791.4,2791.0,0.71656]
[1740365395773,3.2078,2791.2,2790.6,4.731]
[1740365395971,3.2078,2791.5,2790.9,0.00537711]
[1740365396472,3.92424,2791.5,2790.9,0.72195711]
[1740365396668,3.2078,2791.5,2791.0,0.71657]
[1740365396867,3.2078,2791.5,2791.2,0.71651]
[1740365397573,3.2078,2791.5,2791.4,0.71647]
[1740365397874,5.4594,2791.9,2791.1,3.2078]
[1740365398371,5.4594,2791.9,2791.5,0.71643]
[1740365398673,5.4594,2791.9,2791.1,3.2078]
[1740365398872,6.17575,2791.9,2791.4,0.71645]
[1740365399063,6.17574,2791.9,2791.1,3.2078]
[1740365399268,5.4594,2791.9,2791.6,0.71641]
[1740365399466,5.4594,2791.9,2791.1,3.2078]
[1740365399869,5.4594,2791.9,2791.6,0.7164]
[1740365400070,4.3546,2791.9,2791.4,3.2078]
[1740365400267,3.2078,2792.6,2791.7,3.2078]
[1740365400467,2.437,2792.5,2791.5,3.3684]
[1740365400665,3.2078,2791.7,2790.9,5.6448]
[1740365400872,1.136,2791.6,2790.9,5.6448]
[1740365401070,1.136,2791.6,2791.0,0.00537711]
[1740365401575,3.92434,2791.1,2791.0,0.00537711]
[1740365402571,3.2078,2791.1,2791.0,0.00537711]
[1740365402773,3.92434,2791.1,2791.0,0.00537711]
[1740365402974,3.2078,2791.1,2791.0,0.72194711]
[1740365403375,3.2078,2791.1,2791.0,0.00537711]
[1740365403776,3.2078,2791.1,2791.0,0.72194711]
[1740365404073,1.136,2791.6,2791.0,0.72194711]
[1740365404074,3.572,2791.6,2791.0,0.00537711]
[1740365404275,3.572,2791.6,2791.5,0.71644]
[1740365404474,4.28842,2791.6,2791.1,0.71653]
[1740365404676,3.2078,2791.4,2791.0,0.00537711]
[1740365404972,3.2078,2791.1,2791.0,0.00537711]
[1740365405177,3.2078,2791.1,2791.0,0.72194711]
[1740365405373,2.436,2791.3,2791.2,0.71652]
[1740365405970,3.2078,2791.5,2791.2,0.71652]
[1740365406680,3.2078,2791.5,2791.3,0.71649]
[1740365406879,3.2078,2791.5,2791.2,0.7165]
[1740365407677,3.2078,2791.5,2791.0,0.00537711]
[1740365407888,0.71648,2791.4,2791.0,0.00537711]
[1740365408080,4.2567,2791.5,2791.0,0.72193711]
[1740365408277,4.97315,2791.5,2791.0,0.00537711]
[1740365408478,4.2567,2791.5,2791.0,0.72192711]
[1740365408983,4.2567,2791.5,2791.0,0.00537711]
[1740365409478,4.2567,2791.5,2791.1,0.71652]
[1740365409779,3.2078,2791.5,2791.0,0.00537711]
[1740365409986,1.136,2791.6,2791.0,0.00537711]
[1740365410185,1.1344,2792.0,2791.0,0.00537711]
[1740365410186,0.71632,2792.0,2791.5,0.71644]
[1740365410386,3.2078,2791.9,2791.6,1.0421]
[1740365410679,3.2078,2791.9,2791.7,0.71638]
[1740365410872,3.2078,2791.9,2791.3,1.1461]
[1740365411078,3.2078,2791.9,2791.7,0.71638]
[1740365411287,3.2078,2791.9,2791.8,0.71636]
[1740365411489,3.2078,2791.9,2791.3,1.1461]
[1740365412001,3.2078,2791.9,2791.5,0.71643]
[1740365412293,3.2078,2791.9,2791.6,0.71641]
[1740365412591,3.2078,2791.9,2791.5,0.71642]
[1740365412796,3.2078,2791.9,2791.7,0.71639]
[1740365413095,3.2078,2792.5,2791.7,3.2078]
[1740365413598,3.2078,2792.5,2791.8,1.0996]
[1740365413801,3.2078,2792.5,2792.1,0.71627]
[1740365413994,3.2078,2792.5,2791.8,1.0996]
[1740365414392,3.924,2792.5,2792.0,0.71631]
[1740365414588,0.71622,2792.4,2791.9,0.71634]
[1740365414794,3.2078,2792.5,2791.8,1.0996]
[1740365414994,0.71621,2792.4,2791.8,1.0996]
[1740365415194,3.92399,2792.5,2792.0,0.7163]
[1740365415500,2.2869,2792.6,2791.8,1.0996]
[1740365415701,3.00307,2792.6,2791.8,1.0996]
[1740365416101,3.00307,2792.6,2792.1,0.71626]
[1740365416102,0.71619,2792.5,2792.1,0.71626]
[1740365416296,3.924,2792.5,2792.0,0.7163]
[1740365416493,3.2078,2792.5,2792.0,0.7163]
[1740365416696,3.2078,2792.5,2791.8,1.0996]
[1740365417003,3.2078,2792.2,2791.8,0.71634]
[1740365417297,3.2078,2792.5,2791.7,5.6438]
[1740365417702,3.2078,2792.2,2791.5,1.1176]
[1740365417896,3.2078,2792.2,2791.9,0.71634]
[1740365418306,3.92407,2792.2,2791.8,0.71635]
[1740365418600,3.2078,2792.2,2791.5,1.1176]
[1740365419104,3.2078,2792.2,2791.9,0.71632]
[1740365419405,3.2078,2792.2,2791.9,0.71634]
[1740365419702,3.2078,2792.2,2792.0,0.71631]
[1740365420094,3.2078,2792.2,2792.1,0.71629]
[1740365421002,1.1525,2792.6,2791.5,2.90871]
[1740365421003,4.3603,2792.6,2791.5,2.90871]
[1740365421204,4.3603,2792.6,2792.5,0.71618]
[1740365422404,1.0576,2792.9,2792.2,1.1489]
[1740365422604,2.1098,2792.9,2792.2,1.1489]
[1740365422907,2.1098,2792.9,2792.5,0.71617]
[1740365423604,2.8259,2792.9,2792.4,0.72156711]
[1740365423805,2.1098,2792.9,2792.4,0.00537711]
[1740365424304,0.71612,2792.8,2792.4,0.72158711]
[1740365424607,2.1098,2792.9,2792.4,0.00537711]
[1740365425108,0.71618,2792.5,2792.4,0.00537711]
[1740365425308,3.92395,2792.7,2792.4,0.00537711]
[1740365425806,0.71617,2792.6,2792.4,0.00537711]
[1740365426508,3.70317,2792.6,2792.4,0.00537711]
[1740365427003,6.13817,2792.6,2792.4,0.00537711]
[1740365427606,0.71959612,2792.5,2792.4,0.00537711]
[1740365427812,1.81769612,2792.5,2792.4,0.00537711]
[1740365430605,7.81769612,2792.5,2792.4,0.00537711]
[1740365430813,0.71635,2791.9,2791.3,1.0624]
[1740365431011,3.92415,2791.9,2791.7,0.71638]
[1740365431509,3.2078,2791.9,2791.7,0.71637]
[1740365431715,3.2078,2791.9,2791.8,0.71636]
[1740365432212,0.71637,2791.8,2791.6,0.71641]
[1740365432413,3.2078,2791.9,2791.5,0.00537711]
[1740365432612,3.92415,2791.9,2791.7,0.71638]
[1740365433414,0.71641,2791.7,2791.5,0.00537711]
[1740365433715,0.71641,2791.7,2791.5,0.72180711]
[1740365433914,0.71642,2791.6,2791.5,0.00537711]
[1740365434104,1.0509,2791.8,2791.5,0.00537711]
[1740365434312,1.0509,2791.8,2791.6,0.7164]
[1740365434513,1.0509,2791.8,2791.5,0.00537711]
[1740365434911,0.71642,2791.6,2791.5,0.00537711]
[1740365435318,3.70342,2791.6,2791.5,0.00537711]
[1740365436218,2.987,2791.6,2791.5,0.00537711]
[1740365436514,6.91122,2791.6,2791.5,0.00537711]
[1740365436919,9.2078,2791.6,2789.9,3.2078]
[1740365437213,3.2078,2790.7,2790.0,40.8]
[1740365437416,3.2078,2790.7,2790.5,0.71669]
[1740365437717,3.2078,2790.7,2790.5,0.71668]
[1740365438119,3.2078,2790.7,2789.9,7.21813]
[1740365438120,0.71668,2790.6,2790.4,0.71671]
[1740365438310,3.2078,2790.7,2790.5,0.71668]
[1740365438926,3.2078,2790.7,2790.3,0.00537711]
[1740365439123,0.71671,2790.5,2790.3,0.00537711]
[1740365439722,0.71672,2790.4,2790.3,0.00537711]
[1740365440028,6.36052,2790.4,2790.3,0.00537711]
[1740365451733,3.2078,2790.4,2790.3,0.72212711]
[1740365451930,0.00537711,2790.9,2790.8,0.71662]
[1740365452127,2.436,2791.6,2790.8,3.92442]
[1740365452439,3.92421,2791.7,2791.3,0.71648]
[1740365452838,3.9242,2791.7,2790.9,2.1383]
[1740365453137,5.6438,2791.7,2791.6,0.71642]
[1740365453334,0.00537711,2791.6,2791.2,1.7913]
[1740365453534,0.00537711,2791.6,2791.5,0.71644]
[1740365453735,3.2078,2792.0,2791.8,0.71636]
[1740365453930,5.6438,2792.0,2791.4,3.2078]
[1740365454126,3.21121612,2792.5,2791.7,3.2078]
[1740365454327,3.21121612,2792.5,2792.4,0.71621]
[1740365454628,0.00341612,2792.5,2792.4,0.71621]
[1740365455233,0.00341612,2792.5,2792.2,0.00537711]
[1740365456943,3.92404,2792.3,2792.2,0.00537711]
[1740365457343,3.2078,2792.3,2792.2,0.00537711]
[1740365458439,3.92404,2792.3,2792.2,0.00537711]
[1740365458643,3.2078,2792.3,2792.2,0.00537711]
[1740365458941,3.2078,2792.3,2792.2,0.72163711]
[1740365459137,0.00341612,2792.5,2792.2,0.00537711]
[1740365459639,0.00341612,2792.5,2792.2,0.72161711]
[1740365460140,0.00341612,2792.5,2792.2,0.00537711]
[1740365460339,0.71624,2792.4,2792.2,0.00537711]
[1740365460637,2.435,2792.4,2792.2,0.72162711]
[1740365460843,3.2078,2792.3,2792.2,0.00537711]
[1740365461537,3.92404,2792.3,2792.2,0.00537711]
[1740365461736,10.3301,2792.3,2791.5,1.1443]
[1740365461935,3.2078,2791.7,2791.6,0.71642]
[1740365462141,2.435,2791.7,2791.6,0.71642]
[1740365462342,5.6428,2791.7,2791.6,0.71642]
[1740365463544,5.6428,2791.7,2791.5,1.86073]
[1740365463745,5.6428,2791.7,2791.6,0.71642]
[1740365464045,5.6428,2791.7,2791.5,1.86073]
[1740365464238,5.6428,2791.7,2791.6,0.71642]
[1740365466045,5.6428,2791.7,2791.5,1.86073]
[1740365467046,5.6428,2791.7,2791.5,1.1443]